bitfinex-derivatives/quotes_ETHF0:USTF0_20260308
["timestamp","ask_amount","ask_price","bid_price","bid_amount"]
[1772966438158,12.52134589,1973.1,1972.8,6.96516316]
[1772966439058,6.80294117,1973.0,1972.8,6.96516316]
[1772966439259,0.00399859,1973.0,1972.8,6.96516316]
[1772966440663,6.80693976,1973.0,1972.8,6.96516316]
[1772966440960,0.00399859,1973.0,1972.8,6.96516316]
[1772966441264,6.80693976,1973.0,1972.5,6.96516316]
[1772966441557,6.80693976,1973.0,1972.7,6.96516316]
[1772966441960,0.00399859,1973.0,1972.7,6.96516316]
[1772966449261,6.80693976,1973.0,1972.7,6.96516316]
[1772966449569,0.00399859,1973.0,1972.7,6.96516316]
[1772966451874,6.80294117,1973.3,1972.7,6.96516316]
[1772966452275,2.82626492,1973.0,1972.7,6.96516316]
[1772966452474,12.54595339,1973.2,1972.7,6.96516316]
[1772966452772,6.80294117,1973.2,1972.7,6.96516316]
[1772966452974,5.43458025,1973.1,1972.7,6.96516316]
[1772966456980,12.23752142,1973.1,1972.7,6.96516316]
[1772966459274,6.80294117,1973.0,1972.4,0.00587271]
[1772966459582,6.80294117,1972.8,1972.4,0.00587271]
[1772966459783,6.80294117,1972.8,1972.4,6.97103587]
[1772966459983,12.4433386,1972.7,1972.4,6.97103587]
[1772966460376,5.70195287,1972.8,1972.4,6.97103587]
[1772966460580,6.80856571,1973.2,1972.5,6.96516316]
[1772966460882,5.70195287,1973.0,1972.5,6.96516316]
[1772966461082,6.80294117,1973.1,1972.5,6.96516316]
[1772966461583,5.27558629,1973.0,1972.5,6.96516316]
[1772966461978,12.07852746,1973.0,1972.5,6.96516316]
[1772966462582,5.27558629,1973.0,1972.5,6.96516316]
[1772966462985,12.26355517,1973.0,1972.5,6.96516316]
[1772966465984,6.97324,1972.9,1972.5,6.96516316]
[1772966466384,0.00562454,1973.2,1972.5,6.96516316]
[1772966466687,6.97324,1973.0,1972.5,6.96516316]
[1772966471882,0.00562454,1973.2,1972.5,6.96516316]
[1772966472588,6.97324,1973.0,1972.5,6.96516316]
[1772966473087,6.97886454,1973.2,1972.5,6.96516316]
[1772966473487,6.97324,1973.0,1972.5,6.96516316]
[1772966475485,0.00562454,1973.2,1972.5,6.96516316]
[1772966475685,6.97886454,1973.2,1972.5,6.96516316]
[1772966476287,6.97324,1973.0,1972.5,6.96516316]
[1772966476589,6.97886454,1973.2,1972.5,6.96516316]
[1772966476788,6.97324,1973.1,1972.5,6.96516316]
[1772966477087,12.81185646,1973.1,1972.5,6.96516316]
[1772966477384,6.97324,1973.0,1972.5,6.96516316]
[1772966477594,6.97324,1973.0,1972.5,40.06553776]
[1772966477981,6.97324,1973.0,1972.6,7.39853776]
[1772966482095,0.00562454,1973.2,1972.6,7.39853776]
[1772966482396,6.97886454,1973.2,1972.6,7.39853776]
[1772966483593,6.97886454,1973.2,1972.4,0.00587271]
[1772966483594,0.71153804,1973.0,1971.3,20.56064399]
[1772966483794,6.63240565,1973.1,1971.4,7.39853776]
[1772966483795,0.70895269,1972.5,1971.4,7.39853776]
[1772966483992,0.70895269,1972.3,1971.4,7.39853776]
[1772966484494,3.03239391,1972.1,1971.4,7.39853776]
[1772966484688,3.03239391,1972.1,1971.4,7.40241224]
[1772966484892,3.30273937,1971.9,1971.4,7.40241224]
[1772966485692,3.27844593,1971.7,1970.6,7.39853776]
[1772966485994,3.25063222,1972.1,1970.9,7.39853776]
[1772966486393,6.97324,1972.0,1971.1,7.39853776]
[1772966486788,12.41324361,1971.9,1971.1,7.40210895]
[1772966487397,5.44000361,1971.9,1971.1,7.40210895]
[1772966488897,0.00359065,1972.0,1971.1,7.40210895]
[1772966492601,8.28438731,1972.0,1971.1,7.40210895]
[1772966492802,8.28079666,1971.8,1971.1,7.40210895]
[1772966495505,8.28438731,1972.0,1971.1,7.40210895]
[1772966495905,5.81857346,1971.9,1971.1,7.40210895]
[1772966496307,14.09937012,1971.9,1971.1,7.40210895]
[1772966499607,0.00359065,1972.0,1971.1,7.40210895]
[1772966500006,8.28438731,1972.0,1971.1,7.40210895]
[1772966513127,8.28079666,1972.7,1971.3,8.13132121]
[1772966513428,8.28079666,1972.5,1971.3,8.13132121]
[1772966513819,8.28079666,1972.5,1971.5,8.13132121]
[1772966514025,8.28079666,1972.5,1971.7,8.13132121]
[1772966514227,8.28436906,1972.5,1971.7,8.13132121]
[1772966514627,0.0035724,1972.5,1971.7,8.13132121]
[1772966514828,8.28436906,1972.5,1971.7,8.13132121]
[1772966516130,0.0035724,1972.5,1971.7,8.13132121]
[1772966516526,0.0035724,1972.5,1971.9,8.13132121]
[1772966518333,8.28079666,1972.9,1971.9,8.13132121]
[1772966518729,13.85445642,1972.8,1971.9,8.13132121]
[1772966519431,13.86057204,1972.8,1971.9,8.13132121]
[1772966519628,5.57977538,1972.8,1971.9,8.13132121]
[1772966519829,0.00611562,1972.8,1971.9,8.13132121]
[1772966520226,8.28079666,1973.2,1971.9,8.13132121]
[1772966520532,8.28079666,1973.2,1972.1,8.13132121]
[1772966520828,8.28079666,1973.2,1972.3,8.13132121]
[1772966521434,8.28701414,1973.2,1972.3,8.13132121]
[1772966526639,5.38999822,1973.1,1971.6,8.35933014]
[1772966526837,8.4174592,1972.9,1971.6,8.35933014]
[1772966527237,5.38999822,1972.8,1971.6,8.35933014]
[1772966527437,8.4174592,1972.7,1971.6,8.35933014]
[1772966527741,5.49303805,1972.6,1971.6,8.35933014]
[1772966527941,8.4174592,1972.5,1971.6,8.35933014]
[1772966530943,8.4174592,1972.8,1971.6,8.35933014]
[1772966532543,8.4174592,1972.8,1971.8,8.35933014]
[1772966535240,8.4174592,1973.1,1971.8,8.35933014]
[1772966535641,8.4174592,1973.0,1971.8,8.35933014]
[1772966537644,8.4174592,1973.0,1972.0,8.35933014]
[1772966537844,8.4174592,1973.0,1972.2,8.35933014]
[1772966539238,8.4174592,1973.0,1972.0,8.35933014]
[1772966539448,8.4174592,1972.8,1972.0,8.35933014]
[1772966541752,8.4174592,1972.6,1971.9,40.65133014]
[1772966542243,8.4174592,1972.4,1972.0,8.35933014]
[1772966547747,8.4174592,1972.4,1971.6,8.35933014]
[1772966548052,8.4174592,1972.2,1971.6,8.35933014]
[1772966551761,8.74644,1973.0,1971.6,8.35933014]
[1772966551954,8.4174592,1972.9,1971.6,8.35933014]
[1772966552154,8.4174592,1972.8,1971.6,8.35933014]
[1772966552557,5.36671249,1972.7,1971.6,8.35933014]
[1772966552960,7.49417538,1972.6,1971.6,8.35933014]
[1772966553357,5.72975401,1972.5,1971.6,8.35933014]
[1772966553559,7.49417538,1972.4,1971.6,8.35933014]
[1772966563670,7.49417538,1972.6,1971.8,8.04554376]
[1772966566772,7.49417538,1972.6,1972.0,8.04554376]
[1772966566975,7.0119251,1972.5,1971.0,8.20181753]
[1772966567169,6.7584351,1972.4,1971.1,8.20538872]
[1772966567675,5.51722181,1972.3,1971.1,8.20538872]
[1772966567874,6.7584351,1972.2,1971.1,8.20538872]
[1772966568070,0.94952633,1972.1,1971.1,8.20538872]
[1772966568271,0.94952633,1972.0,1971.1,8.20538872]
[1772966568674,0.94952633,1971.8,1971.1,8.20538872]
[1772966568875,0.95528786,1971.8,1971.1,8.20538872]
[1772966571075,0.9200036,1971.6,1971.0,8.19390391]
[1772966572172,0.9200036,1971.6,1971.0,8.1977734]
[1772966575979,0.82956384,1971.6,1971.0,8.1977734]
[1772966585784,0.77436618,1971.8,1971.0,8.1977734]
[1772966586186,0.75439169,1971.6,1971.0,8.1977734]
[1772966598794,1.4196379,1971.4,1971.0,0.00386949]
[1772966598993,1.4196379,1971.4,1970.7,8.01213966]
[1772966599194,1.40485696,1971.2,1970.7,8.01213966]
[1772966599494,5.51468758,1971.1,1970.7,8.01213966]
[1772966599697,6.91954454,1971.1,1970.7,8.01213966]
[1772966599894,6.91954454,1971.1,1970.7,8.01723579]
[1772966600094,1.40485696,1971.1,1970.7,8.01723579]
[1772966600296,5.84355315,1971.0,1970.7,8.01723579]
[1772966601797,1.33164277,1971.3,1970.7,8.01723579]
[1772966602200,0.00576153,1971.8,1970.7,8.01723579]
[1772966602201,13.85301551,1971.6,1970.7,8.01723579]
[1772966602496,8.08449926,1971.6,1970.7,8.01723579]
[1772966602797,8.08449926,1971.4,1970.7,8.01723579]
[1772966604098,8.08449926,1971.7,1970.7,8.01723579]
[1772966604498,8.08449926,1971.6,1970.7,8.01723579]
[1772966604897,13.30011564,1971.5,1970.7,8.01723579]
[1772966605199,8.08449926,1971.5,1970.7,8.01723579]
[1772966605597,5.21561638,1971.4,1970.7,8.01723579]
[1772966606600,13.30011564,1971.4,1970.7,8.01723579]
[1772966613304,8.71283361,1971.3,1970.7,8.01723579]
[1772966613794,8.71283361,1971.7,1970.7,8.01723579]
[1772966614194,8.71283361,1971.6,1970.7,8.01723579]
[1772966614599,5.52246768,1971.5,1970.7,8.01723579]
[1772966614902,8.71283361,1971.4,1970.7,8.01723579]
[1772966623803,8.70860747,1971.5,1970.7,8.01723579]
[1772966624211,5.63973744,1971.4,1970.7,8.01723579]
[1772966624609,14.32557697,1971.4,1970.7,8.01723579]
[1772966625909,8.65888363,1971.3,1970.7,8.01723579]
[1772966631617,8.54088642,1971.6,1970.7,8.01723579]
[1772966631824,8.54088642,1971.7,1970.9,8.47264594]
[1772966632123,8.53747359,1971.6,1970.9,8.47264594]
[1772966648435,8.06647701,1971.7,1970.9,8.47264594]
[1772966648832,0.00576153,1971.8,1971.1,8.16556757]
[1772966649136,8.06647701,1972.1,1971.3,8.16556757]
[1772966649935,8.07103056,1972.1,1971.3,8.16556757]
[1772966662646,12.29303079,1972.9,1971.5,8.16556757]
[1772966662847,8.06647701,1972.9,1971.7,8.16556757]
[1772966663052,8.06647701,1972.9,1971.9,8.16556757]
[1772966663248,5.84595134,1972.8,1971.9,8.16556757]
[1772966663454,8.06647701,1972.7,1971.9,8.16556757]
[1772966663757,8.07281466,1972.7,1971.9,8.16556757]
[1772966666456,5.38959142,1972.6,1971.7,8.16556757]
[1772966666652,8.06647701,1972.5,1971.7,8.16556757]
[1772966666959,5.69108831,1972.4,1971.7,8.16556757]
[1772966667257,8.06647701,1972.3,1971.7,8.16556757]
[1772966676165,8.06647701,1972.3,1971.7,18.67036048]
[1772966676366,8.06647701,1972.3,1971.8,8.01739444]
[1772966678766,7.75570209,1972.6,1971.8,8.01739444]
[1772966679165,7.75570209,1972.5,1971.8,8.01739444]
[1772966679569,7.75570209,1972.3,1971.8,8.01739444]
[1772966680065,13.50921267,1972.5,1971.8,8.01739444]
[1772966680266,7.75570209,1972.5,1971.8,8.01739444]
[1772966681670,5.33813355,1972.4,1971.8,8.01739444]
[1772966682065,7.75570209,1972.3,1971.8,8.01739444]
[1772966684165,7.75570209,1972.3,1971.8,18.52218735]
[1772966686371,7.75570209,1972.3,1971.9,8.01739444]
[1772966686568,7.75570209,1972.3,1971.8,10.50479291]
[1772966686768,7.75570209,1972.3,1971.8,18.52218735]
[1772966688774,7.75570209,1972.3,1971.9,8.01739444]
[1772966691169,7.75570209,1972.3,1971.9,18.52218735]
[1772966696181,7.75570209,1972.3,1972.0,10.50479291]
[1772966696382,6.9319726,1972.3,1972.0,10.50479291]
[1772966697576,0.00633765,1972.7,1971.9,8.01739444]
[1772966697577,7.76203974,1972.7,1972.3,8.01739444]
[1772966697782,7.76203974,1972.7,1972.4,8.01739444]
[1772966698182,5.46682272,1972.6,1972.0,8.01739444]
[1772966698384,7.75570209,1972.5,1972.0,8.01739444]
[1772966699083,7.75570209,1972.5,1972.0,8.02145015]
[1772966701783,7.75570209,1972.5,1972.0,0.00405571]
[1772966701981,0.00633765,1972.7,1971.8,8.01739444]
[1772966701982,7.75570209,1972.3,1971.8,8.01739444]
[1772966702982,7.75570209,1972.3,1971.8,8.02189719]
[1772966708183,7.75570209,1972.3,1972.0,8.23458445]
[1772966708386,8.08398231,1972.5,1972.0,8.23458445]
[1772966708588,8.08398231,1972.5,1972.1,8.23458445]
[1772966708789,5.41807887,1972.4,1972.1,8.23458445]
[1772966709089,13.50206118,1972.4,1972.1,8.23458445]
[1772966710387,8.08398231,1972.3,1972.1,8.23458445]
[1772966710986,8.08398231,1972.3,1972.0,8.23458445]
[1772966713093,8.08398231,1972.3,1971.9,18.7710385]
[1772966713286,8.08398231,1972.3,1971.9,10.53645405]
[1772966713790,8.08398231,1972.3,1972.0,8.23458445]
[1772966718796,8.06274989,1972.6,1972.0,8.23458445]
[1772966719093,8.04301119,1972.4,1972.0,8.23458445]
[1772966736906,16.17690255,1972.5,1972.0,8.23458445]
[1772966737208,13.03639643,1972.4,1972.0,8.23458445]
[1772966737602,7.59796218,1972.3,1972.0,8.23458445]
[1772966738605,7.57908184,1972.6,1972.0,8.23458445]
[1772966738808,7.57908184,1972.5,1972.0,8.23458445]
[1772966741013,8.566,1972.6,1972.0,8.23458445]
[1772966741014,7.29862282,1972.3,1972.0,8.23458445]
[1772966742716,7.29862282,1972.3,1971.9,10.11187169]
[1772966742916,7.29862282,1972.3,1971.9,17.83949673]
[1772966745921,7.29862282,1972.3,1971.9,10.11187169]
[1772966746122,7.29862282,1972.3,1971.8,7.73212779]
[1772966751918,7.29862282,1972.3,1971.7,7.72762504]
[1772966752126,6.91533503,1972.1,1971.4,7.72762504]
[1772966752326,6.91533503,1972.0,1971.3,7.72762504]
[1772966752527,5.70576339,1972.0,1971.3,7.72762504]
[1772966752725,15.52533503,1972.2,1971.6,7.72762504]
[1772966752924,15.52533503,1972.2,1971.6,7.73345656]
[1772966753221,12.60480132,1972.1,1971.6,7.73345656]
[1772966753420,12.60480132,1972.1,1971.7,7.72762504]
[1772966756127,6.83510818,1972.0,1971.5,10.5410157]
[1772966756328,6.82927666,1971.8,1971.2,7.72762504]
[1772966756625,6.82927666,1971.6,1971.1,7.72762504]
[1772966757333,6.82927666,1971.6,1971.1,7.73348665]
[1772966758926,15.44219074,1971.8,1971.1,7.73348665]
[1772966759231,5.80668313,1971.8,1971.3,7.72762504]
[1772966759632,12.53528855,1971.8,1971.3,7.72762504]
[1772966762331,12.42362199,1971.8,1971.3,7.72762504]
[1772966762631,6.61693886,1971.7,1971.3,7.72762504]
[1772966762829,6.6249136,1971.7,1971.3,7.72762504]
[1772966764032,15.46239977,1971.9,1971.3,7.72762504]
[1772966764228,6.79894717,1971.8,1971.2,7.23865048]
[1772966764533,6.79894717,1971.7,1971.2,7.23865048]
[1772966766131,6.75225822,1971.9,1971.2,7.23865048]
[1772966766332,6.75225822,1972.1,1971.3,7.23865048]
[1772966766533,8.651,1972.2,1971.4,7.23865048]
[1772966766730,6.75225822,1972.1,1971.4,7.23865048]
[1772966766930,5.28046097,1972.1,1971.5,7.23865048]
[1772966767130,12.03271919,1972.2,1971.5,7.23865048]
[1772966767332,6.75225822,1972.2,1971.5,7.23865048]
[1772966768337,6.8977543,1972.0,1971.4,7.23865048]
[1772966774236,6.8977543,1972.0,1971.5,7.23865048]
[1772966775436,0.25349,1972.6,1971.5,7.23865048]
[1772966775642,7.02275015,1972.4,1971.5,7.23865048]
[1772966775842,7.02275015,1972.1,1971.5,7.23865048]
[1772966776143,12.74996995,1972.0,1971.5,7.23865048]
[1772966776542,7.00626245,1972.0,1971.5,7.23865048]
[1772966777142,6.97077175,1972.2,1971.5,7.23865048]
[1772966777441,12.77331497,1972.2,1971.5,7.23865048]
[1772966777643,6.97077175,1972.1,1971.5,7.23865048]
[1772966777945,5.80254322,1972.0,1971.5,7.23865048]
[1772966778245,6.96813685,1971.9,1971.5,7.23865048]
[1772966781244,6.96813685,1971.9,1971.6,7.23865048]
[1772966783744,4.25211412,1973.1,1971.6,7.23865048]
[1772966783943,6.89633546,1972.4,1971.6,7.23865048]
[1772966784245,6.88032827,1972.1,1971.6,7.23865048]
[1772966787743,6.8415463,1971.9,1971.4,17.77966618]
[1772966788450,6.8415463,1971.9,1971.5,7.23865048]
[1772966789347,6.8415463,1971.9,1971.4,17.77966618]
[1772966789737,6.8415463,1971.9,1971.5,7.23865048]
[1772966790345,6.8415463,1971.9,1971.4,17.77966618]
[1772966790643,6.8415463,1971.9,1971.4,10.5410157]
[1772966790850,6.81410786,1971.7,1971.4,10.5410157]
[1772966791041,5.99026979,1971.7,1971.4,10.5410157]
[1772966791550,5.99026979,1971.7,1971.4,17.77966618]
[1772966792150,5.99026979,1971.7,1971.5,7.23865048]
[1772966792846,5.99026979,1971.7,1971.4,17.81876199]
[1772966793044,5.99026979,1971.7,1971.3,17.81876199]
[1772966793348,5.99026979,1971.7,1971.2,17.81876199]
[1772966793948,5.99026979,1971.7,1971.3,7.27774629]
[1772966794447,10.73711412,1972.8,1971.3,7.27774629]
[1772966794448,5.93109637,1972.1,1971.3,7.27774629]
[1772966794744,5.93109637,1971.9,1971.3,7.27774629]
[1772966796958,5.79899258,1972.1,1971.5,7.27774629]
[1772966797451,5.7690333,1972.0,1971.5,7.27774629]
[1772966797856,5.7690333,1971.8,1971.5,7.27774629]
[1772966798050,5.7690333,1971.8,1971.4,7.27774629]
[1772966801754,5.71552819,1972.5,1971.4,7.27774629]
[1772966802056,5.70012156,1971.9,1971.4,7.27774629]
[1772966802454,5.755818,1971.8,1971.4,7.27774629]
[1772966802649,5.70012156,1971.9,1971.4,7.27774629]
[1772966806461,5.6638493,1972.0,1971.4,7.27774629]
[1772966806757,5.78392441,1971.9,1971.4,7.27774629]
[1772966806961,5.78392441,1971.9,1971.5,7.27774629]
[1772966807661,11.4332046,1971.9,1971.5,7.27774629]
[1772966809863,5.67270482,1972.2,1971.6,7.27774629]
[1772966810167,7.28224688,1972.1,1971.6,7.27774629]
[1772966810464,7.28224688,1972.4,1971.7,7.27774629]
[1772966810961,5.85633618,1972.4,1971.7,7.27774629]
[1772966811166,7.28224688,1972.3,1971.7,7.27774629]
[1772966811366,7.28224688,1972.6,1971.9,7.27774629]
[1772966811768,7.28224688,1972.4,1971.9,7.27774629]
[1772966814368,7.28224688,1972.4,1971.8,17.81876199]
[1772966814569,7.28224688,1972.4,1971.8,7.27774629]
[1772966815070,7.28224688,1972.2,1971.8,7.27774629]
[1772966815269,7.28224688,1972.2,1971.6,17.81876199]
[1772966815770,7.28224688,1972.2,1971.7,7.27774629]
[1772966817169,7.28224688,1972.4,1971.7,7.27774629]
[1772966817671,7.28224688,1972.2,1971.7,7.27774629]
[1772966818771,7.28224688,1972.4,1971.7,7.27774629]
[1772966819173,7.28224688,1972.3,1971.7,7.27774629]
[1772966819572,13.13476007,1972.2,1971.7,7.27774629]
[1772966819973,7.28224688,1972.1,1971.7,7.27774629]
[1772966820172,7.28224688,1972.2,1971.7,7.27774629]
[1772966820473,13.07964955,1972.2,1971.7,7.27774629]
[1772966820773,7.28224688,1972.1,1971.7,7.27774629]
[1772966820973,7.28224688,1972.1,1971.6,7.27774629]
[1772966821670,7.28224688,1972.6,1971.6,7.27774629]
[1772966821875,7.28224688,1972.5,1971.6,7.27774629]
[1772966822078,7.28224688,1972.3,1971.6,7.27774629]
[1772966823174,7.6145905,1972.5,1971.7,7.31407966]
[1772966823574,5.4569537,1972.4,1971.7,7.31407966]
[1772966823774,13.0715442,1972.4,1971.7,7.31407966]
[1772966823974,13.0715442,1972.4,1971.8,7.31407966]
[1772966828277,5.4569537,1972.4,1971.9,7.31407966]
[1772966828477,7.6145905,1972.3,1972.0,7.31407966]
[1772966831177,7.6145905,1972.6,1972.0,7.31407966]
[1772966831677,7.6145905,1972.5,1972.0,7.31407966]
[1772966832070,5.82369697,1972.4,1972.0,7.31407966]
[1772966832269,13.43828747,1972.4,1972.0,7.31407966]
[1772966833580,7.6145905,1972.5,1972.0,7.31407966]
[1772966836280,7.6145905,1972.5,1971.9,7.31407966]
[1772966837280,7.6145905,1972.5,1972.0,7.31407966]
[1772966842788,7.6145905,1972.6,1972.1,7.31407966]
[1772966843188,7.6145905,1972.5,1972.1,7.31407966]
[1772966845187,7.6145905,1972.5,1971.9,7.53155453]
[1772966845491,7.6145905,1972.3,1971.6,7.31407966]
[1772966845686,7.6145905,1972.2,1971.6,7.31407966]
[1772966845882,5.62069501,1972.2,1971.6,7.31407966]
[1772966846084,7.6145905,1972.2,1971.6,7.31407966]
[1772966847293,7.6145905,1972.0,1971.6,7.31407966]
[1772966848194,7.6145905,1972.4,1971.6,7.31407966]
[1772966848691,7.6145905,1972.3,1971.6,7.31407966]
[1772966850592,7.6145905,1972.1,1971.6,7.31407966]
[1772966855092,7.47337342,1972.5,1971.6,7.31407966]
[1772966855302,7.47337342,1972.5,1971.8,7.27412418]
[1772966855501,7.47337342,1972.4,1971.8,7.27412418]
[1772966855801,5.2909923,1972.3,1971.8,7.27412418]
[1772966856501,7.47337342,1972.2,1971.8,7.27412418]
[1772966859497,7.47337342,1972.2,1971.4,20.47001195]
[1772966859705,7.47337342,1972.0,1971.1,7.27998579]
[1772966860099,7.47337342,1971.8,1971.1,7.27998579]
[1772966860599,7.47337342,1971.6,1971.1,7.27998579]
[1772966861098,7.47337342,1971.4,1970.9,7.27412418]
[1772966862103,7.47337342,1971.4,1970.9,7.27826245]
[1772966863896,7.47337342,1971.4,1970.9,0.00413827]
[1772966864099,7.47337342,1971.4,1970.9,7.27826245]
[1772966865006,7.47337342,1971.4,1970.9,0.00413827]
[1772966865203,7.47337342,1971.2,1970.9,0.00413827]
[1772966865403,7.47337342,1971.2,1970.7,7.27412418]
[1772966866300,7.47914671,1971.2,1970.7,7.27895006]
[1772966869104,7.47914671,1971.2,1970.7,0.00482588]
[1772966869305,7.47914671,1971.2,1970.7,7.27895006]
[1772966870609,7.47337342,1971.0,1970.5,39.56212418]
[1772966871504,7.47337342,1971.0,1970.6,7.27412418]
[1772966871712,7.47337342,1971.0,1970.6,7.27828179]
[1772966872013,0.00577329,1971.2,1970.6,7.27828179]
[1772966872214,7.47914671,1971.2,1970.6,7.27828179]
[1772966872711,7.47337342,1971.0,1970.6,7.27828179]
[1772966874615,7.47914671,1971.2,1970.6,7.27828179]
[1772966874915,12.86677331,1971.1,1970.6,7.27828179]
[1772966875315,7.47337342,1971.0,1970.6,7.27828179]
[1772966876417,7.47337342,1971.0,1970.6,0.00415761]
[1772966877417,7.47337342,1971.0,1970.3,7.27412418]
[1772966878419,7.47337342,1971.0,1970.3,7.27791795]
[1772966884726,7.68395319,1970.8,1970.3,0.00379377]
[1772966885221,7.68395319,1970.6,1970.3,0.00379377]
[1772966885523,7.68395319,1970.6,1970.3,7.3259475]
[1772966886126,7.68395319,1970.7,1970.3,7.3259475]
[1772966889126,7.68395319,1970.7,1970.3,0.00379377]
[1772966889431,7.68395319,1971.1,1970.0,7.32215373]
[1772966889828,7.68395319,1971.0,1970.0,7.32215373]
[1772966890229,5.62361989,1970.9,1970.0,7.3274859]
[1772966890428,13.30757308,1970.9,1970.0,7.3274859]
[1772966890926,7.68395319,1970.9,1970.0,7.3274859]
[1772966891131,5.4706637,1970.8,1970.0,7.3274859]
[1772966892839,13.15461689,1970.8,1970.0,7.3274859]
[1772966893435,7.68395319,1970.7,1970.0,7.3274859]
[1772966894133,7.68395319,1971.1,1970.0,7.3274859]
[1772966894438,7.68395319,1971.0,1970.0,7.3274859]
[1772966894935,5.58171303,1970.9,1970.0,7.3274859]
[1772966895129,7.68395319,1970.8,1970.0,7.3274859]
[1772966898134,7.68395319,1970.8,1970.0,7.5812959]
[1772966898336,7.68395319,1971.1,1970.0,7.5812959]
[1772966898535,7.68395319,1971.1,1970.1,7.32215373]
[1772966898737,7.68395319,1971.0,1970.1,7.32215373]
[1772966903237,7.68972648,1971.2,1970.1,7.41045429]
[1772966903448,7.68972648,1971.2,1970.2,7.32215373]
[1772966903736,5.7711787,1971.1,1970.4,7.32215373]
[1772966903942,7.68395319,1971.0,1970.4,7.32215373]
[1772966911449,7.68395319,1971.1,1970.4,7.32215373]
[1772966911654,0.00577329,1971.2,1970.4,7.32215373]
[1772966912354,0.00577329,1971.2,1970.4,7.57590373]
[1772966912653,7.03190174,1971.2,1970.4,7.57590373]
[1772966919646,7.02612845,1971.3,1970.5,7.48343092]
[1772966920757,7.03065191,1971.3,1970.5,7.48343092]
[1772966926561,7.03065191,1971.3,1970.6,7.48343092]
[1772966928063,7.02612845,1972.3,1970.8,7.48343092]
[1772966928264,7.02612845,1972.3,1971.3,7.48343092]
[1772966928457,7.02612845,1972.1,1971.4,39.75843092]
[1772966928659,7.02612845,1972.1,1971.5,7.48343092]
[1772966928959,7.03048291,1972.1,1971.5,7.48909537]
[1772966935966,7.02612845,1971.9,1971.5,0.00566445]
[1772966936264,7.02612845,1971.9,1971.4,32.155]
[1772966936566,6.09676091,1971.7,1971.4,29.20585076]
[1772966936761,6.09676091,1971.7,1971.4,28.98837508]
[1772966937364,6.09676091,1971.7,1971.4,28.99337587]
[1772966937661,6.09676091,1971.7,1971.4,28.81836488]
[1772966937866,6.09676091,1971.7,1970.7,41.05372]
[1772966937867,6.09676091,1971.7,1971.1,32.457]
[1772966938074,6.09676091,1971.7,1971.1,32.462]
[1772966938568,6.09676091,1971.7,1971.1,39.94543092]
[1772966938769,6.09676091,1971.7,1971.1,39.95101658]
[1772966938962,6.31925049,1971.5,1971.1,32.46758566]
[1772966939767,6.31925049,1971.5,1971.1,39.95101658]
[1772966940868,6.31925049,1971.5,1971.1,32.46758566]
[1772966942870,1.14100686,1971.3,1971.1,28.28481722]
[1772966944264,1.14100686,1971.3,1971.1,0.00558566]
[1772966945173,1.14100686,1971.3,1970.9,7.3523333]
[1772966946171,1.14100686,1971.3,1970.9,7.35722024]
[1772966948765,0.18089096,1971.5,1970.9,7.35722024]
[1772966949176,5.49130007,1971.4,1970.9,7.35722024]
[1772966949372,5.64657227,1971.4,1970.9,7.35722024]
[1772966954683,5.49130007,1971.4,1970.9,7.35722024]
[1772966971791,0.25356,1972.0,1970.6,7.67575071]
[1772966972101,0.25358,1971.8,1970.6,7.67575071]
[1772966972502,5.41938403,1971.7,1970.6,7.67575071]
[1772966973099,5.41938403,1971.7,1970.6,7.67944215]
[1772966995814,5.41938403,1971.7,1970.8,7.46412197]
[1772966996118,5.44842374,1972.0,1970.8,7.46412197]
[1772966997111,5.44842374,1972.0,1970.9,7.45994354]
[1772967019138,5.44842374,1972.0,1971.0,7.38654679]
[1772967025448,5.44842374,1972.0,1971.1,7.45969108]
[1772967026149,0.00435446,1972.1,1971.1,7.45969108]
[1772967026446,5.78974074,1972.0,1971.1,7.45969108]
[1772967027042,5.78974074,1972.0,1971.2,7.51326806]
[1772967036363,5.78974074,1972.0,1971.3,7.51779622]
[1772967039665,4.96590059,1972.0,1971.3,7.51779622]
[1772967053478,4.96590059,1972.0,1971.4,7.25425915]
[1772967055174,4.14205835,1972.0,1971.4,7.25425915]
[1772967059180,3.56805836,1972.0,1971.4,7.25425915]
[1772967061482,1.2519459,1973.1,1971.6,6.05061504]
[1772967061682,1.2519459,1972.9,1971.8,6.05061504]
[1772967061879,1.2519459,1972.6,1971.8,6.05061504]
[1772967062383,1.48809027,1972.4,1971.8,6.05061504]
[1772967062683,6.80644728,1972.3,1971.8,6.05061504]
[1772967063083,1.48153447,1972.3,1971.8,6.05061504]
[1772967070388,1.38827155,1972.1,1971.5,5.96841019]
[1772967070790,1.38827155,1971.9,1971.5,5.96841019]
[1772967070991,0.56447107,1971.9,1971.4,38.71986765]
[1772967071191,0.54752421,1971.7,1971.4,32.505]
[1772967071486,0.73294592,1971.6,1971.2,6.21554314]
[1772967071790,0.54752421,1971.6,1971.2,6.21554314]
[1772967073594,0.25352,1972.4,1971.2,6.21554314]
[1772967073995,5.29609141,1972.3,1971.2,6.21554314]
[1772967079302,0.25353,1972.2,1970.9,6.6193101]
[1772967079702,5.38619752,1972.1,1970.9,6.6193101]
[1772967081604,0.25356,1972.0,1970.9,6.6193101]
[1772967081904,5.6515208,1971.9,1970.9,6.6193101]
[1772967082098,0.25358,1971.8,1970.7,6.61792564]
[1772967082604,5.66095599,1971.7,1970.7,6.61792564]
[1772967091117,5.85690951,1972.1,1970.7,6.61792564]
[1772967091321,5.43962439,1972.4,1970.7,6.61792564]
[1772967091518,5.62683529,1972.0,1970.7,6.61792564]
[1772967091920,5.62683529,1972.4,1970.7,6.61792564]
[1772967092121,0.2535,1972.5,1970.7,6.61792564]
[1772967092422,5.79887298,1972.4,1970.7,6.61792564]
[1772967099325,0.25352,1972.3,1970.7,6.61792564]
[1772967099729,5.48899936,1972.2,1970.7,6.61792564]
[1772967099923,5.48899936,1972.2,1970.7,19.81381341]
[1772967100130,5.48899936,1972.2,1970.9,6.56040552]
[1772967118353,5.48899936,1972.2,1971.0,6.53265942]
[1772967120260,5.48899936,1972.2,1971.1,6.53467775]
[1772967124460,5.48899936,1972.2,1971.2,6.53149779]
[1772967129458,5.45243747,1972.5,1971.3,6.53116159]
[1772967129654,0.00525122,1972.6,1971.3,6.53116159]
[1772967129855,5.45243747,1972.5,1971.3,6.53116159]
[1772967134672,5.45243747,1972.5,1971.5,6.52827344]
[1772967134871,5.45243747,1972.5,1971.6,6.52827344]
[1772967135066,5.45243747,1972.5,1971.8,6.52827344]
[1772967136967,6.76275641,1972.5,1971.8,6.52827344]
[1772967137174,1.31031894,1972.4,1971.8,6.52827344]
[1772967137473,5.46381493,1972.3,1971.7,37.29275372]
[1772967137663,1.29901873,1972.2,1971.7,37.29275372]
[1772967138067,1.29901873,1972.0,1971.7,37.29275372]
[1772967138975,1.29181428,1972.6,1971.8,5.84475372]
[1772967139274,1.33151846,1972.4,1971.8,5.84475372]
[1772967143769,0.00525122,1972.6,1971.8,5.84475372]
[1772967143978,1.1674167,1972.5,1971.8,5.84475372]
[1772967144175,6.88644246,1972.5,1971.8,5.84475372]
[1772967148080,1.06040258,1972.4,1971.8,5.84475372]
[1772967170493,0.74313523,1972.5,1971.8,5.84475372]